{"text_format":"1","workbook":"xlsx","n_sheets":4,"sheets":["ورقة2","ورقة1","Master","Exam"],"not_rendered":{"charts":0,"images":1,"macros":0,"external_links":1,"defined_names":0,"comments":0,"pivot_tables":0},"unopened":[],"bounds":{"document_bytes":16777216,"sheet_cells":100000,"rows_first":2000,"rows_last":500,"rows_between":2000,"halvings":0,"cell_chars":16384,"cell_head_chars":4096},"cells_cut":0,"cells_raw":0,"read":"whole","date_system":"1900"}

{"sheet":"ورقة2","index":0,"n_rows":15,"n_cols":1,"rows_kept":15,"cut":false,"hidden":false,"merged":[]}
["مساعدة فى عمل ورقة اختبار أى مادة"]
[]
["https://www.officena.net/ib/topic/115452-%D8%B7%D9%84%D8%A8-%D9%83%D8%B1%D8%A7%D9%85%D8%A7-%D9%84%D8%A7%D8%A7%D9%85%D8%B1/"]
[]
["عندي اختبار في  عمل ورقة اختبار أي مادة بحيث يكون السؤال الأول متعدد بقوم الطالب فقط بالتظليل على الإجابة الصحيحة وعدد الأسئلة 30فقرة"]
[]
["والسؤال الثاني صح وخطأ بحيث يظلل فقط على ص او خ وعددها 20 فقرة "]
[]
["يعني سؤال وجواب متعدد "]
[]
["سؤال ويختار ص او خ"]
[]
["تقبل الطباعة على A4"]
[]
["مثل النموذج هذا ولكم الشكر والتقدير والاحترا"]

{"sheet":"ورقة1","index":1,"n_rows":42,"n_cols":14,"rows_kept":42,"cut":false,"hidden":false,"merged":[[38,1,39,12],[40,0,40,12],[41,9,41,12],[30,1,31,1],[30,2,30,9],[30,10,31,12],[32,0,39,0],[32,1,32,12],[33,1,33,12],[34,1,34,5],[35,2,35,7],[36,2,36,7],[37,1,37,5],[19,0,31,0],[19,1,19,9],[22,1,23,1],[22,2,22,9],[22,10,23,12],[24,1,25,1],[24,2,24,9],[24,10,25,12],[26,1,27,1],[26,2,26,9],[26,10,27,12],[28,1,29,1],[28,2,28,9],[28,10,29,12],[19,10,19,12],[20,1,21,1],[20,2,20,9],[20,10,21,12],[9,0,9,9],[10,0,10,9],[11,0,11,9],[12,0,18,0],[12,1,12,10],[12,11,12,12],[13,2,13,9],[14,2,14,9],[15,2,15,9],[16,2,16,9],[17,2,17,9],[18,2,18,9],[8,0,8,5],[8,8,8,9],[3,0,3,3],[3,5,3,8],[3,11,3,12],[4,0,4,3],[4,5,4,8],[4,11,4,12],[5,0,5,3],[5,5,6,8],[7,1,7,3],[7,4,7,8],[7,10,7,11],[0,0,0,12],[1,0,1,3],[1,5,1,8],[1,11,1,12],[2,0,2,3],[2,5,2,8],[2,11,2,12]]}
["بسم الله الرحمن الرحيم"]
["الجمهورية اليمنية",null,null,null,null,null,null,null,null,null,"الصف :"]
["وزارة التربية والتعليم",null,null,null,null,null,null,null,null,null,"التاريخ :","24 / 1 / 2021م"]
[null,null,null,null,null,"اختبار نهاية الفصل الدراسي الأول ",null,null,null,null,"الزمن :"]
[null,null,null,null,null,"للعام الدراسي 2020 2021م",null,null,null,null,"الفترة :"]
["مدرسة السلام الأساسية النموذجية ",null,null,null,null,"المادة: العلوم"]
[]
[null,"اسم الطالب :",null,null,{"$f":"IF(OR($V$1=\"\",$V$1=0,$V$1>$W$1),\"\",INDEX(OFFSET('[1]أسماء الطلاب'!$A$2:$A$72,1*($V$1-1),2),MATCH($V$1,OFFSET('[1]أسماء الطلاب'!$A$2:$A$72,1*($V$1-1),0),0)))","v":""},null,null,null,null,"رقم الجلوس:",{"$f":"IF(OR($V$1=\"\",$V$1=0,$V$1>$W$1),\"\",INDEX(OFFSET('[1]أسماء الطلاب'!$A$2:$A$72,1*($V$1-1),1),MATCH($V$1,OFFSET('[1]أسماء الطلاب'!$A$2:$A$72,1*($V$1-1),0),0)))","v":""}]
["تعليمات هامة لتظليل الدوائر في ورقة الإجابة:"]
["1- يجب أن يكون تظليل الدائرة بقلم جاف بالشكل الكامل مثال:               وليس                                                                                                                         "]
["2- عدم ثقب الورقة أثناء التظليل.                                                                                           "]
["3-لكل سؤال إجابة واحدة فقط، تظليل أكثر من إجابة للسؤال الواحد يلغي درجة السؤال نهائياً.                                                                                          "]
["السؤال الأول","ضع علامة ( √ ) امام العبارات الصحيحة و علامة  ( X  ) امام العبارات الخاطئة فيما يلي             ثم ظلل الدائرة المناسبة:                                 ",null,null,null,null,null,null,null,null,null,"مكان الإجابة النهائية"]
[null,1,{"$f":"[1]Sheet1!A2","v":"عند تبريد السائل فإن حركة جزيئاته تقل                                        "},null,null,null,null,null,null,null,"(         )",null,null,30]
[null,2,{"$f":"[1]Sheet1!A3","v":"الصيغة الكيميائية لهيبوكلوريد الصوديوم هي ( NaHClO ) ."},null,null,null,null,null,null,null,"(         )"]
[null,3,{"$f":"[1]Sheet1!A4","v":"المركب هو عبارة عن مادة تتكون من إتحاد عنصرين أو اكثر                "},null,null,null,null,null,null,null,"(         )"]
[null,4,{"$f":"[1]Sheet1!A5","v":"تكون شحنة الالكترونات سالبة.                                                            "},null,null,null,null,null,null,null,"(         )"]
[null,5,{"$f":"[1]Sheet1!A6","v":"يمكن تحضير الكلور بتفاعل البروم مع كلوريد الصوديوم ."},null,null,null,null,null,null,null,"(         )"]
[null,6,{"$f":"[1]Sheet1!A7","v":"المحلول هو خليط متجانس من مادتين أو أكثر بحيث يصعب التمييز بين مكوناته                            "},null,null,null,null,null,null,null,"(         )"]
["السؤال الثاني","اختر الإجابة الصحيحة لكل فقرة ثم ظلل على الدائرة التي تمثل رقم الإجابة الصحيحة                   ",null,null,null,null,null,null,null,null,"مكان الإجابة النهائية"]
[null,1,{"$f":"'[1]بنك الاسئلة2'!A4","v":" ظاهرة التآصل توجد في عنصر:"}]
[null,null,1,{"$f":"'[1]بنك الاسئلة2'!B4","v":"N"},2,{"$f":"'[1]بنك الاسئلة2'!C4","v":"Si"},3,{"$f":"'[1]بنك الاسئلة2'!D4","v":"C"},4,{"$f":"'[1]بنك الاسئلة2'!E4","v":"Ge"},null,null,null,20]
[null,2,{"$f":"'[1]بنك الاسئلة2'!A5","v":"رغم سمية غاز أول أكسيد الكربون إلا أنه يستخدم في إستخلاص :"}]
[null,null,1,{"$f":"'[1]بنك الاسئلة2'!B5","v":"الذهب"},2,{"$f":"'[1]بنك الاسئلة2'!C5","v":"الحديد"},3,{"$f":"'[1]بنك الاسئلة2'!D5","v":"الفضة"},4,{"$f":"'[1]بنك الاسئلة2'!E5","v":"الزئبق"}]
[null,3,{"$f":"'[1]بنك الاسئلة2'!A6","v":"من استخدامات الفلور :"}]
[null,null,1,{"$f":"'[1]بنك الاسئلة2'!B6","v":"صناعة معجون الأسنان"},2,{"$f":"'[1]بنك الاسئلة2'!C6","v":"تحضير مزيل الألوان"},3,{"$f":"'[1]بنك الاسئلة2'!D6","v":"نفخ المناطيد"},4,{"$f":"'[1]بنك الاسئلة2'!E6","v":"صناعة أقطاب البطاريات"}]
[null,4,{"$f":"'[1]بنك الاسئلة2'!A7","v":"واحد من العناصر الآتية عنصر فلزي :"}]
[null,null,1,{"$f":"'[1]بنك الاسئلة2'!B7","v":"O"},2,{"$f":"'[1]بنك الاسئلة2'!C7","v":"Po"},3,{"$f":"'[1]بنك الاسئلة2'!D7","v":"Se"},4,{"$f":"'[1]بنك الاسئلة2'!E7","v":"Si"}]
[null,5,{"$f":"'[1]بنك الاسئلة2'!A8","v":"تعتمد طريقة دايكون لتحضير الكلور على عوامل من ضمنها تسخين لدرجة حرارة :"}]
[null,null,1,{"$f":"'[1]بنك الاسئلة2'!B8","v":"450°"},2,{"$f":"'[1]بنك الاسئلة2'!C8","v":"540°"},3,{"$f":"'[1]بنك الاسئلة2'!D8","v":"350°"},4,{"$f":"'[1]بنك الاسئلة2'!E8","v":"550°"}]
[null,6,{"$f":"'[1]بنك الاسئلة2'!A9","v":"الغاز الخامل الذي يشتهر بتكوين مركبات قفصية هو :"}]
[null,null,1,{"$f":"'[1]بنك الاسئلة2'!B9","v":"الهيليوم"},2,{"$f":"'[1]بنك الاسئلة2'!C9","v":"الكريبتون"},3,{"$f":"'[1]بنك الاسئلة2'!D9","v":"النيون"},4,{"$f":"'[1]بنك الاسئلة2'!E9","v":"الأرجون"}]
["السؤال الثالث","أ)  علل: إيهما أفضل كدواء للحموضه حليب الماغنسيا ( هدروكسيد الماغنسيوم ) أو الأقراص الفوارة، ولماذا ؟"]
[]
[null,"ب) اكتب المصطلح العلمي لكلاً من:- "]
[null,null,"(.....................) هو إنتقال السائل من أعلى إلى أسفل."]
[null,null," (.....................) هو أبسط مادة نقيه لا يمكن تحليلها إلى مواد أبسط منها."]
[null,"ج) عرف الانعكاس مع رسم نوعا الانعكاس؟"]
[]
[]
["انتهت الأسئلة      أتمنى للجميع النجاح بتفوق             "]
[null,null,null,null,null,null,null,null,null,"مدرس المادة  أ/  "]

{"sheet":"Master","index":2,"n_rows":42,"n_cols":12,"rows_kept":42,"cut":false,"hidden":false,"merged":[[0,0,0,12],[1,0,1,3],[1,5,1,8],[1,11,1,12],[2,0,2,3],[2,5,2,8],[2,11,2,12],[8,0,8,5],[8,8,8,9],[3,0,3,3],[3,5,3,8],[3,11,3,12],[4,0,4,3],[4,5,4,8],[4,11,4,12],[5,0,5,3],[5,5,6,8],[7,1,7,3],[7,4,7,8],[7,10,7,11],[12,11,12,12],[13,2,13,9],[14,2,14,9],[15,2,15,9],[16,2,16,9],[9,0,9,9],[10,0,10,9],[11,0,11,9],[12,0,18,0],[12,1,12,10],[17,2,17,9],[18,2,18,9],[19,0,31,0],[19,1,19,9],[19,10,19,12],[20,1,21,1],[20,2,20,9],[20,10,21,12],[22,1,23,1],[22,2,22,9],[22,10,23,12],[24,1,25,1],[24,2,24,9],[24,10,25,12],[26,1,27,1],[26,2,26,9],[26,10,27,12],[28,1,29,1],[28,2,28,9],[28,10,29,12],[30,1,31,1],[30,2,30,9],[30,10,31,12],[40,0,40,12],[41,9,41,12],[32,0,39,0],[32,1,32,12],[33,1,33,12],[34,1,34,5],[35,2,35,7],[36,2,36,7],[37,1,37,5],[38,1,39,12]]}
["بسم الله الرحمن الرحيم"]
["الجمهورية اليمنية",null,null,null,null,null,null,null,null,null,"الصف :"]
["وزارة التربية والتعليم",null,null,null,null,null,null,null,null,null,"التاريخ :","24 / 1 / 2021م"]
[null,null,null,null,null,"اختبار نهاية الفصل الدراسي الأول ",null,null,null,null,"الزمن :"]
[null,null,null,null,null,"للعام الدراسي 2020 2021م",null,null,null,null,"الفترة :"]
["مدرسة السلام الأساسية النموذجية ",null,null,null,null,"المادة: العلوم"]
[]
[null,"اسم الطالب :",null,null,{"$f":"IF(OR($V$1=\"\",$V$1=0,$V$1>$W$1),\"\",INDEX(OFFSET('[1]أسماء الطلاب'!$A$2:$A$72,1*($V$1-1),2),MATCH($V$1,OFFSET('[1]أسماء الطلاب'!$A$2:$A$72,1*($V$1-1),0),0)))","v":""},null,null,null,null,"رقم الجلوس:",{"$f":"IF(OR($V$1=\"\",$V$1=0,$V$1>$W$1),\"\",INDEX(OFFSET('[1]أسماء الطلاب'!$A$2:$A$72,1*($V$1-1),1),MATCH($V$1,OFFSET('[1]أسماء الطلاب'!$A$2:$A$72,1*($V$1-1),0),0)))","v":""}]
["تعليمات هامة لتظليل الدوائر في ورقة الإجابة:"]
["1- يجب أن يكون تظليل الدائرة بقلم جاف بالشكل الكامل مثال:               وليس                                                                                                                         "]
["2- عدم ثقب الورقة أثناء التظليل.                                                                                           "]
["3-لكل سؤال إجابة واحدة فقط، تظليل أكثر من إجابة للسؤال الواحد يلغي درجة السؤال نهائياً.                                                                                          "]
["السؤال الأول","ضع علامة ( √ ) امام العبارات الصحيحة و علامة  ( X  ) امام العبارات الخاطئة فيما يلي             ثم ظلل الدائرة المناسبة:                                 ",null,null,null,null,null,null,null,null,null,"مكان الإجابة النهائية"]
[null,1,{"$f":"[1]Sheet1!A2","v":"عند تبريد السائل فإن حركة جزيئاته تقل                                        "},null,null,null,null,null,null,null,"(         )"]
[null,2,{"$f":"[1]Sheet1!A3","v":"الصيغة الكيميائية لهيبوكلوريد الصوديوم هي ( NaHClO ) ."},null,null,null,null,null,null,null,"(         )"]
[null,3,{"$f":"[1]Sheet1!A4","v":"المركب هو عبارة عن مادة تتكون من إتحاد عنصرين أو اكثر                "},null,null,null,null,null,null,null,"(         )"]
[null,4,{"$f":"[1]Sheet1!A5","v":"تكون شحنة الالكترونات سالبة.                                                            "},null,null,null,null,null,null,null,"(         )"]
[null,5,{"$f":"[1]Sheet1!A6","v":"يمكن تحضير الكلور بتفاعل البروم مع كلوريد الصوديوم ."},null,null,null,null,null,null,null,"(         )"]
[null,6,{"$f":"[1]Sheet1!A7","v":"المحلول هو خليط متجانس من مادتين أو أكثر بحيث يصعب التمييز بين مكوناته                            "},null,null,null,null,null,null,null,"(         )"]
["السؤال الثاني","اختر الإجابة الصحيحة لكل فقرة ثم ظلل على الدائرة التي تمثل رقم الإجابة الصحيحة                   ",null,null,null,null,null,null,null,null,"مكان الإجابة النهائية"]
[null,1,{"$f":"'[1]بنك الاسئلة2'!A4","v":" ظاهرة التآصل توجد في عنصر:"}]
[null,null,1,{"$f":"'[1]بنك الاسئلة2'!B4","v":"N"},2,{"$f":"'[1]بنك الاسئلة2'!C4","v":"Si"},3,{"$f":"'[1]بنك الاسئلة2'!D4","v":"C"},4,{"$f":"'[1]بنك الاسئلة2'!E4","v":"Ge"}]
[null,2,{"$f":"'[1]بنك الاسئلة2'!A5","v":"رغم سمية غاز أول أكسيد الكربون إلا أنه يستخدم في إستخلاص :"}]
[null,null,1,{"$f":"'[1]بنك الاسئلة2'!B5","v":"الذهب"},2,{"$f":"'[1]بنك الاسئلة2'!C5","v":"الحديد"},3,{"$f":"'[1]بنك الاسئلة2'!D5","v":"الفضة"},4,{"$f":"'[1]بنك الاسئلة2'!E5","v":"الزئبق"}]
[null,3,{"$f":"'[1]بنك الاسئلة2'!A6","v":"من استخدامات الفلور :"}]
[null,null,1,{"$f":"'[1]بنك الاسئلة2'!B6","v":"صناعة معجون الأسنان"},2,{"$f":"'[1]بنك الاسئلة2'!C6","v":"تحضير مزيل الألوان"},3,{"$f":"'[1]بنك الاسئلة2'!D6","v":"نفخ المناطيد"},4,{"$f":"'[1]بنك الاسئلة2'!E6","v":"صناعة أقطاب البطاريات"}]
[null,4,{"$f":"'[1]بنك الاسئلة2'!A7","v":"واحد من العناصر الآتية عنصر فلزي :"}]
[null,null,1,{"$f":"'[1]بنك الاسئلة2'!B7","v":"O"},2,{"$f":"'[1]بنك الاسئلة2'!C7","v":"Po"},3,{"$f":"'[1]بنك الاسئلة2'!D7","v":"Se"},4,{"$f":"'[1]بنك الاسئلة2'!E7","v":"Si"}]
[null,5,{"$f":"'[1]بنك الاسئلة2'!A8","v":"تعتمد طريقة دايكون لتحضير الكلور على عوامل من ضمنها تسخين لدرجة حرارة :"}]
[null,null,1,{"$f":"'[1]بنك الاسئلة2'!B8","v":"450°"},2,{"$f":"'[1]بنك الاسئلة2'!C8","v":"540°"},3,{"$f":"'[1]بنك الاسئلة2'!D8","v":"350°"},4,{"$f":"'[1]بنك الاسئلة2'!E8","v":"550°"}]
[null,6,{"$f":"'[1]بنك الاسئلة2'!A9","v":"الغاز الخامل الذي يشتهر بتكوين مركبات قفصية هو :"}]
[null,null,1,{"$f":"'[1]بنك الاسئلة2'!B9","v":"الهيليوم"},2,{"$f":"'[1]بنك الاسئلة2'!C9","v":"الكريبتون"},3,{"$f":"'[1]بنك الاسئلة2'!D9","v":"النيون"},4,{"$f":"'[1]بنك الاسئلة2'!E9","v":"الأرجون"}]
["السؤال الثالث","أ)  علل: إيهما أفضل كدواء للحموضه حليب الماغنسيا ( هدروكسيد الماغنسيوم ) أو الأقراص الفوارة، ولماذا ؟"]
[]
[null,"ب) اكتب المصطلح العلمي لكلاً من:- "]
[null,null,"(.....................) هو إنتقال السائل من أعلى إلى أسفل."]
[null,null," (.....................) هو أبسط مادة نقيه لا يمكن تحليلها إلى مواد أبسط منها."]
[null,"ج) عرف الانعكاس مع رسم نوعا الانعكاس؟"]
[]
[]
["انتهت الأسئلة      أتمنى للجميع النجاح بتفوق             "]
[null,null,null,null,null,null,null,null,null,"مدرس المادة  أ/  "]

{"sheet":"Exam","index":3,"n_rows":42,"n_cols":17,"rows_kept":42,"cut":false,"hidden":false,"merged":[[0,0,0,12],[1,0,1,3],[1,5,1,8],[1,11,1,12],[2,0,2,3],[2,5,2,8],[2,11,2,12],[8,0,8,5],[8,8,8,9],[3,0,3,3],[3,5,3,8],[3,11,3,12],[4,0,4,3],[4,5,4,8],[4,11,4,12],[5,0,5,3],[5,5,6,8],[7,1,7,3],[7,4,7,8],[7,10,7,11],[12,11,12,12],[13,2,13,9],[14,2,14,9],[15,2,15,9],[16,2,16,9],[22,1,23,1],[22,2,22,9],[9,0,9,9],[10,0,10,9],[11,0,11,9],[12,0,18,0],[12,1,12,10],[17,2,17,9],[18,2,18,9],[19,1,19,9],[20,1,21,1],[20,2,20,9],[41,9,41,12],[12,13,18,13],[20,10,21,10],[20,11,21,11],[20,12,21,12],[20,13,21,13],[22,10,23,10],[22,11,23,11],[22,12,23,12],[32,1,32,12],[33,1,33,12],[34,1,34,5],[35,2,35,7],[36,2,36,7],[37,1,37,5],[38,1,39,12],[40,0,40,12],[32,0,39,0],[28,1,29,1],[28,2,28,9],[30,1,31,1],[30,2,30,9],[28,10,29,10],[28,11,29,11],[28,12,29,12],[19,0,31,0],[19,10,19,13],[22,13,23,13],[24,1,25,1],[24,2,24,9],[26,1,27,1],[26,2,26,9],[30,10,31,10],[30,11,31,11],[30,12,31,12],[30,13,31,13],[24,10,25,10],[24,11,25,11],[24,12,25,12],[24,13,25,13],[28,13,29,13],[26,10,27,10],[26,11,27,11],[26,12,27,12],[26,13,27,13]]}
["بسم الله الرحمن الرحيم"]
["الجمهورية اليمنية",null,null,null,null,null,null,null,null,null,"الصف :"]
["وزارة التربية والتعليم",null,null,null,null,null,null,null,null,null,"التاريخ :","24 / 1 / 2021م"]
[null,null,null,null,null,"اختبار نهاية الفصل الدراسي الأول ",null,null,null,null,"الزمن :"]
[null,null,null,null,null,"للعام الدراسي 2020 2021م",null,null,null,null,"الفترة :"]
["مدرسة السلام الأساسية النموذجية ",null,null,null,null,"المادة: العلوم"]
[]
[null,"اسم الطالب :",null,null,{"$f":"IF(OR($V$1=\"\",$V$1=0,$V$1>$W$1),\"\",INDEX(OFFSET('[1]أسماء الطلاب'!$A$2:$A$72,1*($V$1-1),2),MATCH($V$1,OFFSET('[1]أسماء الطلاب'!$A$2:$A$72,1*($V$1-1),0),0)))","v":""},null,null,null,null,"رقم الجلوس:",{"$f":"IF(OR($V$1=\"\",$V$1=0,$V$1>$W$1),\"\",INDEX(OFFSET('[1]أسماء الطلاب'!$A$2:$A$72,1*($V$1-1),1),MATCH($V$1,OFFSET('[1]أسماء الطلاب'!$A$2:$A$72,1*($V$1-1),0),0)))","v":""}]
["تعليمات هامة لتظليل الدوائر في ورقة الإجابة:"]
["1- يجب أن يكون تظليل الدائرة بقلم جاف بالشكل الكامل مثال:               وليس                                                                                                                         "]
["2- عدم ثقب الورقة أثناء التظليل.                                                                                           "]
["3-لكل سؤال إجابة واحدة فقط، تظليل أكثر من إجابة للسؤال الواحد يلغي درجة السؤال نهائياً.                                                                                          ",null,null,null,null,null,null,null,null,null,null,null,null,null,null,null,"الإحابة"]
["السؤال الأول","ضع علامة ( √ ) امام العبارات الصحيحة و علامة  ( X  ) امام العبارات الخاطئة فيما يلي             ثم ظلل الدائرة المناسبة:                                 ",null,null,null,null,null,null,null,null,null,"مكان الإجابة النهائية",null,"السؤال الأول"]
[null,1,{"$f":"[1]Sheet1!A2","v":"عند تبريد السائل فإن حركة جزيئاته تقل                                        "},null,null,null,null,null,null,null,"(         )",{"$f":"CHAR(252)","v":"ü"},{"$f":"CHAR(251)","v":"û"},null,null,null,1]
[null,2,{"$f":"[1]Sheet1!A3","v":"الصيغة الكيميائية لهيبوكلوريد الصوديوم هي ( NaHClO ) ."},null,null,null,null,null,null,null,"(         )","ü","û",null,null,null,2]
[null,3,{"$f":"[1]Sheet1!A4","v":"المركب هو عبارة عن مادة تتكون من إتحاد عنصرين أو اكثر                "},null,null,null,null,null,null,null,"(         )","ü","û",null,null,null,1]
[null,4,{"$f":"[1]Sheet1!A5","v":"تكون شحنة الالكترونات سالبة.                                                            "},null,null,null,null,null,null,null,"(         )","ü","û",null,null,null,2]
[null,5,{"$f":"[1]Sheet1!A6","v":"يمكن تحضير الكلور بتفاعل البروم مع كلوريد الصوديوم ."},null,null,null,null,null,null,null,"(         )","ü","û",null,null,null,2]
[null,6,{"$f":"[1]Sheet1!A7","v":"المحلول هو خليط متجانس من مادتين أو أكثر بحيث يصعب التمييز بين مكوناته                            "},null,null,null,null,null,null,null,"(         )","ü","û",null,null,null,2]
["السؤال الثاني","اختر الإجابة الصحيحة لكل فقرة ثم ظلل على الدائرة التي تمثل رقم الإجابة الصحيحة                   ",null,null,null,null,null,null,null,null,"مكان الإجابة النهائية"]
[null,1,{"$f":"'[1]بنك الاسئلة2'!A4","v":" ظاهرة التآصل توجد في عنصر:"}]
[null,null,1,{"$f":"'[1]بنك الاسئلة2'!B4","v":"N"},2,{"$f":"'[1]بنك الاسئلة2'!C4","v":"Si"},3,{"$f":"'[1]بنك الاسئلة2'!D4","v":"C"},4,{"$f":"'[1]بنك الاسئلة2'!E4","v":"Ge"},null,null,null,null,null,null,1]
[null,2,{"$f":"'[1]بنك الاسئلة2'!A5","v":"رغم سمية غاز أول أكسيد الكربون إلا أنه يستخدم في إستخلاص :"}]
[null,null,1,{"$f":"'[1]بنك الاسئلة2'!B5","v":"الذهب"},2,{"$f":"'[1]بنك الاسئلة2'!C5","v":"الحديد"},3,{"$f":"'[1]بنك الاسئلة2'!D5","v":"الفضة"},4,{"$f":"'[1]بنك الاسئلة2'!E5","v":"الزئبق"},null,null,null,null,null,null,3]
[null,3,{"$f":"'[1]بنك الاسئلة2'!A6","v":"من استخدامات الفلور :"}]
[null,null,1,{"$f":"'[1]بنك الاسئلة2'!B6","v":"صناعة معجون الأسنان"},2,{"$f":"'[1]بنك الاسئلة2'!C6","v":"تحضير مزيل الألوان"},3,{"$f":"'[1]بنك الاسئلة2'!D6","v":"نفخ المناطيد"},4,{"$f":"'[1]بنك الاسئلة2'!E6","v":"صناعة أقطاب البطاريات"},null,null,null,null,null,null,4]
[null,4,{"$f":"'[1]بنك الاسئلة2'!A7","v":"واحد من العناصر الآتية عنصر فلزي :"}]
[null,null,1,{"$f":"'[1]بنك الاسئلة2'!B7","v":"O"},2,{"$f":"'[1]بنك الاسئلة2'!C7","v":"Po"},3,{"$f":"'[1]بنك الاسئلة2'!D7","v":"Se"},4,{"$f":"'[1]بنك الاسئلة2'!E7","v":"Si"},null,null,null,null,null,null,3]
[null,5,{"$f":"'[1]بنك الاسئلة2'!A8","v":"تعتمد طريقة دايكون لتحضير الكلور على عوامل من ضمنها تسخين لدرجة حرارة :"}]
[null,null,1,{"$f":"'[1]بنك الاسئلة2'!B8","v":"450°"},2,{"$f":"'[1]بنك الاسئلة2'!C8","v":"540°"},3,{"$f":"'[1]بنك الاسئلة2'!D8","v":"350°"},4,{"$f":"'[1]بنك الاسئلة2'!E8","v":"550°"},null,null,null,null,null,null,2]
[null,6,{"$f":"'[1]بنك الاسئلة2'!A9","v":"الغاز الخامل الذي يشتهر بتكوين مركبات قفصية هو :"}]
[null,null,1,{"$f":"'[1]بنك الاسئلة2'!B9","v":"الهيليوم"},2,{"$f":"'[1]بنك الاسئلة2'!C9","v":"الكريبتون"},3,{"$f":"'[1]بنك الاسئلة2'!D9","v":"النيون"},4,{"$f":"'[1]بنك الاسئلة2'!E9","v":"الأرجون"},null,null,null,null,null,null,1]
["السؤال الثالث","أ)  علل: إيهما أفضل كدواء للحموضه حليب الماغنسيا ( هدروكسيد الماغنسيوم ) أو الأقراص الفوارة، ولماذا ؟"]
[]
[null,"ب) اكتب المصطلح العلمي لكلاً من:- "]
[null,null,"(.....................) هو إنتقال السائل من أعلى إلى أسفل."]
[null,null," (.....................) هو أبسط مادة نقيه لا يمكن تحليلها إلى مواد أبسط منها."]
[null,"ج) عرف الانعكاس مع رسم نوعا الانعكاس؟"]
[]
[]
["انتهت الأسئلة      أتمنى للجميع النجاح بتفوق             "]
[null,null,null,null,null,null,null,null,null,"مدرس المادة  أ/  "]